bitfinex-derivatives/quotes_BNBF0:USTF0_20250908
["timestamp","ask_amount","ask_price","bid_price","bid_amount"]
[1757363016071,0.61311251,875.69,873.97,1.5236796]
[1757363016270,0.61311251,875.68,873.95,1.5236796]
[1757363016474,0.61311251,875.67,873.95,1.5236796]
[1757363016671,0.61311251,875.66,873.95,1.5236796]
[1757363016872,0.61311251,875.65,873.98,1.5236796]
[1757363017073,0.61311251,875.64,873.98,1.5236796]
[1757363017274,0.61311251,875.63,873.99,1.5236796]
[1757363017474,0.61311251,875.62,873.99,1.5236796]
[1757363017673,0.61311251,875.61,873.99,1.5236796]
[1757363017871,0.61311251,875.6,873.99,1.5236796]
[1757363018072,0.61311251,875.59,873.99,1.5236796]
[1757363018376,0.61311251,875.58,873.99,1.5236796]
[1757363018574,0.61311251,875.57,873.99,1.5236796]
[1757363018772,0.61311251,875.56,873.99,1.5236796]
[1757363018975,0.61311251,875.55,873.99,1.5236796]
[1757363019176,0.61311251,875.54,873.99,1.5236796]
[1757363019374,0.61311251,875.53,873.94,1.5236796]
[1757363019572,0.61311251,875.52,873.91,1.72205893]
[1757363019777,0.61311251,875.51,873.91,1.72205893]
[1757363020076,0.61311251,875.5,873.91,0.19837933]
[1757363020276,0.61311251,875.49,873.91,0.19837933]
[1757363020474,0.61311251,875.48,873.91,0.19837933]
[1757363020673,0.61311251,875.47,873.91,0.19837933]
[1757363020878,0.61311251,875.46,873.91,0.19837933]
[1757363021175,0.61311251,875.45,873.91,0.19837933]
[1757363021380,0.61311251,875.44,873.91,0.19837933]
[1757363021678,0.61311251,875.43,873.91,0.19837933]
[1757363021874,0.61311251,875.42,873.91,0.19837933]
[1757363022073,0.61311251,875.41,873.91,0.19837933]
[1757363022275,0.61311251,875.4,873.91,0.19837933]
[1757363022478,0.61311251,875.39,873.91,0.19837933]
[1757363022774,0.61311251,875.38,873.91,0.19837933]
[1757363023078,0.61311251,875.37,873.91,0.19837933]
[1757363023278,0.61311251,875.36,873.91,0.19837933]
[1757363023472,0.61311251,875.35,873.91,0.19837933]
[1757363023676,0.61311251,875.34,873.91,0.19837933]
[1757363023876,0.61311251,875.33,873.91,0.19837933]
[1757363024179,0.61329379,875.32,873.91,0.19837933]
[1757363024380,1.5320258,875.83,873.91,0.19837933]
[1757363024581,0.61330999,875.82,873.91,0.19837933]
[1757363024780,0.61330999,875.81,873.91,0.19837933]
[1757363024980,0.61330999,875.8,873.91,0.19837933]
[1757363025278,0.61330999,875.79,873.91,0.19837933]
[1757363025480,0.61330999,875.78,873.91,0.19837933]
[1757363025680,0.61330999,875.77,873.91,0.19837933]
[1757363025982,0.61330999,875.76,873.91,0.19837933]
[1757363026180,0.61330999,875.75,873.91,0.19837933]
[1757363026379,0.61330999,875.74,873.91,0.19837933]
[1757363026581,0.61330999,875.73,873.91,0.19837933]
[1757363026781,0.61330999,875.72,873.91,0.19837933]
[1757363026979,0.61330999,875.71,873.91,0.19837933]
[1757363027178,0.61330999,875.7,873.91,0.19837933]
[1757363027382,0.61330999,875.69,873.91,0.19837933]
[1757363027583,0.61330999,875.68,873.91,0.19837933]
[1757363027780,0.61330999,875.67,873.91,0.19837933]
[1757363027984,0.61330999,875.66,873.91,0.19837933]
[1757363028185,0.61330999,875.65,873.91,0.19837933]
[1757363028385,0.61330999,875.64,873.91,0.19837933]
[1757363028684,0.61330999,875.63,873.91,0.19837933]
[1757363028889,0.61330999,875.62,873.91,1.72205893]
[1757363029082,0.61330999,875.61,873.91,1.72205893]
[1757363029284,0.61330999,875.6,873.91,1.72205893]
[1757363029483,0.61330999,875.59,873.91,0.19837933]
[1757363029785,0.61330999,875.58,873.91,0.19837933]
[1757363029986,0.61330999,875.57,873.91,0.19837933]
[1757363030186,0.61330999,875.56,873.91,0.19837933]
[1757363030487,0.61330999,875.55,873.95,1.5236796]
[1757363030684,0.61330999,875.54,873.91,0.19837933]
[1757363030884,0.61330999,875.53,873.91,0.19837933]
[1757363031083,0.61330999,875.52,873.91,0.19837933]
[1757363031287,0.61330999,875.51,873.91,0.19837933]
[1757363031488,0.61330999,875.5,873.91,0.19837933]
[1757363031688,0.61330999,875.49,873.91,0.19837933]
[1757363031883,0.61330999,875.48,873.91,0.19837933]
[1757363032088,0.61330999,875.47,873.91,0.19837933]
[1757363032284,0.61330999,875.46,873.91,0.19837933]
[1757363032488,0.61330999,875.45,873.91,0.19837933]
[1757363032788,0.61330999,875.44,873.91,0.19837933]
[1757363032988,0.61330999,875.43,873.91,0.19837933]
[1757363033187,0.61330999,875.42,873.91,0.19837933]
[1757363033386,0.61330999,875.41,873.91,0.19837933]
[1757363033590,0.61330999,875.4,873.91,0.19837933]
[1757363033791,0.61330999,875.39,873.91,0.19837933]
[1757363034089,0.61330999,875.38,873.91,0.19837933]
[1757363034390,0.61330999,875.37,873.91,0.19837933]
[1757363034585,0.61330999,875.36,873.91,0.19837933]
[1757363034802,0.61330999,875.35,873.91,0.19837933]
[1757363034988,0.61330999,875.34,873.91,0.19837933]
[1757363035187,0.61330999,875.33,873.91,0.19837933]
[1757363035389,0.61330999,875.32,873.91,0.19837933]
[1757363035689,0.61330999,875.31,873.91,0.19837933]
[1757363035890,0.61330999,875.3,873.91,0.19837933]
[1757363036091,0.61330999,875.29,873.91,0.19837933]
[1757363036294,0.61330999,875.28,873.91,0.19837933]
[1757363036494,0.61330999,875.27,873.91,0.19837933]
[1757363036794,0.61330999,875.26,873.91,0.19837933]
[1757363036994,0.61330999,875.25,873.91,0.19837933]
[1757363037193,0.61330999,875.24,873.91,0.19837933]
[1757363037493,0.61330999,875.23,873.91,0.19837933]
[1757363037694,1.5320258,875.62,873.91,0.19837933]
[1757363037992,0.6136538,875.61,873.91,0.19837933]
[1757363038195,0.6136538,875.6,873.91,0.19837933]
[1757363038393,0.6136538,875.59,873.91,0.19837933]
[1757363038590,0.6136538,875.58,873.91,0.19837933]
[1757363038790,0.6136538,875.57,873.91,0.19837933]
[1757363038994,0.6136538,875.56,873.91,0.19837933]
[1757363039189,0.6136538,875.55,873.91,0.19837933]
[1757363039395,0.6136538,875.54,873.91,0.19837933]
[1757363039688,0.6136538,875.53,873.91,0.19837933]
[1757363039893,0.6136538,875.52,873.91,0.19837933]
[1757363040091,0.6136538,875.51,873.91,0.19837933]
[1757363040291,0.6136538,875.5,873.91,0.19837933]
[1757363040496,1.5320258,875.41,874.0,1.5236796]
[1757363040694,0.46045123,875.4,874.01,1.5236796]
[1757363040896,1.5320258,875.41,874.01,1.5236796]
[1757363041496,1.5320258,875.4,874.02,1.5236796]
[1757363042093,1.5320258,875.41,874.02,1.5236796]
[1757363042291,1.5320258,875.4,874.02,1.5236796]
[1757363042593,3.5478291,876.38,873.91,0.19837933]
[1757363042594,1.5320258,875.39,874.03,1.5236796]
[1757363043395,1.5320258,875.57,874.04,1.5236796]
[1757363043596,1.5320258,875.57,873.91,0.19837933]
[1757363044393,1.5320258,875.56,873.91,0.19837933]
[1757363044591,1.5320258,875.52,873.92,1.5236796]
[1757363045097,1.5320258,875.53,873.92,1.5236796]
[1757363045498,1.5320258,875.52,873.92,1.5236796]
[1757363047903,1.5320258,875.53,873.93,1.5236796]
[1757363050703,1.5320258,875.55,873.92,1.5236796]
[1757363051905,1.5320258,875.54,873.92,1.5236796]
[1757363052103,1.5320258,875.56,873.91,0.19837933]
[1757363052304,1.5320258,875.58,873.91,0.19837933]
[1757363052605,0.61263565,875.57,873.91,0.19837933]
[1757363052805,0.61263565,875.56,873.91,0.19837933]
[1757363053001,0.61263565,875.55,873.91,0.19837933]
[1757363053201,0.61263565,875.54,873.91,0.19837933]
[1757363053505,1.5320258,875.49,873.97,1.5236796]
[1757363053705,0.61263565,875.48,873.97,1.5236796]
[1757363053904,0.61263565,875.47,873.97,1.5236796]
[1757363054102,0.61263565,875.46,873.97,1.5236796]
[1757363054305,0.61263565,875.45,873.97,1.5236796]
[1757363054503,0.61263565,875.44,873.97,1.5236796]
[1757363054701,0.61263565,875.43,873.97,1.5236796]
[1757363054906,0.61263565,875.42,873.97,1.5236796]
[1757363055103,0.61263565,875.41,873.97,1.5236796]
[1757363055403,0.61263565,875.4,873.91,0.19837933]
[1757363055602,0.61263565,875.39,873.91,0.19837933]
[1757363055801,0.61263565,875.38,873.91,0.19837933]
[1757363056004,0.61263565,875.37,873.91,0.19837933]
[1757363056207,0.61263565,875.36,873.91,0.19837933]
[1757363056407,0.61263565,875.35,873.91,0.19837933]
[1757363056603,0.61263565,875.34,873.91,0.19837933]
[1757363056905,0.61263565,875.33,873.91,0.19837933]
[1757363057104,0.61263565,875.32,873.91,0.19837933]
[1757363057307,0.61263565,875.31,873.91,0.19837933]
[1757363057507,0.61263565,875.3,873.91,0.19837933]
[1757363057708,0.61263565,875.29,873.91,0.19837933]
[1757363057906,0.61263565,875.28,873.91,0.19837933]
[1757363058107,0.61263565,875.27,873.91,0.19837933]
[1757363058309,0.61263565,875.26,873.91,0.19837933]
[1757363058606,0.61263565,875.25,873.91,0.19837933]
[1757363058906,0.61263565,875.24,873.91,0.19837933]
[1757363059110,0.61263565,875.23,873.91,0.19837933]
[1757363059308,0.61263565,875.22,873.91,0.19837933]
[1757363059511,0.61263565,875.21,873.91,0.19837933]
[1757363059708,0.61263565,875.2,873.91,0.19837933]
[1757363059909,0.61263565,875.19,873.91,0.19837933]
[1757363060114,0.61263565,875.18,873.91,0.19837933]
[1757363060309,0.61263565,875.17,873.91,0.19837933]
[1757363060612,0.61263565,875.16,873.91,0.19837933]
[1757363060913,0.61263565,875.15,873.91,0.19837933]
[1757363063115,1.5320258,875.38,873.91,0.19837933]
[1757363063311,0.61219996,875.37,873.91,0.19837933]
[1757363063511,0.61219996,875.36,873.91,0.19837933]
[1757363063815,0.61219996,875.35,873.91,0.19837933]
[1757363064014,0.61219996,875.34,873.91,0.19837933]
[1757363064209,0.61219996,875.33,873.91,0.19837933]
[1757363064409,0.61219996,875.32,873.91,0.19837933]
[1757363064714,0.61219996,875.31,873.91,0.19837933]
[1757363065015,0.61219996,875.3,873.91,0.19837933]
[1757363065212,0.61219996,875.29,873.91,0.19837933]
[1757363065415,0.61219996,875.28,873.91,0.19837933]
[1757363065615,0.61219996,875.27,873.91,0.19837933]
[1757363065811,0.61219996,875.26,873.91,0.19837933]
[1757363066014,0.61219996,875.25,873.91,0.19837933]
[1757363066315,0.61219996,875.24,873.91,0.19837933]
[1757363066512,0.61219996,875.23,873.91,0.19837933]
[1757363066711,0.61219996,875.22,873.91,0.19837933]
[1757363066916,0.61219996,875.21,873.91,0.19837933]
[1757363067116,0.61219996,875.2,873.91,0.19837933]
[1757363067313,0.61219996,875.19,873.91,0.19837933]
[1757363067514,0.61219996,875.18,873.91,0.19837933]
[1757363067716,0.61219996,875.17,873.91,0.19837933]
[1757363068013,0.55097997,875.16,873.91,0.19837933]
[1757363068212,1.5320258,875.24,873.91,0.19837933]
[1757363068817,1.5320258,875.28,873.91,0.19837933]
[1757363069514,1.5320258,875.29,873.91,0.19837933]
[1757363070818,1.5320258,875.32,873.91,0.19837933]
[1757363073217,1.5320258,875.34,873.91,0.19837933]
[1757363074312,1.5320258,875.33,873.91,0.19837933]
[1757363075620,1.5320258,875.34,873.91,0.19837933]
[1757363076416,1.5320258,875.33,873.91,0.19837933]
[1757363078422,1.5320258,875.34,873.91,0.19837933]
[1757363078718,1.5320258,875.32,873.91,0.19837933]
[1757363079918,0.61117051,875.31,873.91,0.19837933]
[1757363080123,0.61117051,875.3,873.91,0.19837933]
[1757363080423,0.61117051,875.29,873.91,0.19837933]
[1757363080624,0.61117051,875.28,873.91,0.19837933]
[1757363080824,0.61117051,875.27,873.91,0.19837933]
[1757363081021,0.61117051,875.26,873.91,0.19837933]
[1757363081220,0.61117051,875.25,873.91,0.19837933]
[1757363081424,0.61117051,875.24,873.91,0.19837933]
[1757363081724,0.61117051,875.23,873.91,0.19837933]
[1757363081924,0.61117051,875.22,873.91,0.19837933]
[1757363082125,0.61117051,875.21,873.91,0.19837933]
[1757363082322,0.61117051,875.2,873.91,0.19837933]
[1757363082526,0.61117051,875.19,873.91,0.19837933]
[1757363082727,0.61117051,875.18,873.91,0.19837933]
[1757363083023,0.61117051,875.17,873.91,0.19837933]
[1757363083223,0.61117051,875.16,873.91,0.19837933]
[1757363083426,0.61117051,875.15,873.91,0.19837933]
[1757363083720,0.61117051,875.14,873.91,0.19837933]
[1757363083926,0.61117051,875.13,873.91,0.19837933]
[1757363084122,0.55005346,875.12,873.91,0.19837933]
[1757363084324,1.5320258,875.32,873.91,0.19837933]
[1757363084927,1.5320258,875.34,873.91,0.19837933]
[1757363085328,1.5320258,875.35,873.91,0.19837933]
[1757363085527,1.5320258,875.34,873.91,0.19837933]
[1757363085729,1.5320258,875.43,873.91,0.19837933]
[1757363087430,1.5320258,875.42,873.91,0.19837933]
[1757363088430,1.5320258,875.41,873.91,0.19837933]
[1757363088731,1.5320258,875.5,873.68,1.5236796]
[1757363088931,1.5320258,875.49,873.67,1.5236796]
[1757363089231,1.5320258,875.49,874.05,0.19853382]
[1757363090132,1.5320258,875.48,874.05,0.19853382]
[1757363090631,1.5320258,875.47,874.05,0.19853382]
[1757363092532,1.5320258,875.48,874.05,0.19853382]
[1757363092731,1.5320258,875.52,874.05,0.19853382]
[1757363093138,1.5320258,875.53,874.05,0.19853382]
[1757363093537,1.5320258,875.52,874.05,0.19853382]
[1757363093940,1.5320258,875.53,874.05,0.19853382]
[1757363095741,1.5320258,875.49,874.05,0.19853382]
[1757363096038,0.61133131,875.48,874.05,0.19853382]
[1757363096240,0.61133131,875.47,874.05,0.19853382]
[1757363096536,0.61133714,875.46,874.05,0.19853382]
[1757363096742,0.61133714,875.45,874.05,0.19853382]
[1757363097041,0.61133714,875.44,874.05,0.19853382]
[1757363097338,0.61133714,875.43,874.05,0.19853382]
[1757363097542,0.61133714,875.42,874.05,0.19853382]
[1757363097742,0.61133714,875.41,874.05,0.19853382]
[1757363097944,0.61133714,875.4,874.05,0.19853382]
[1757363098243,0.61133714,875.39,874.05,0.19853382]
[1757363098444,0.61133714,875.38,874.05,0.19853382]
[1757363098740,0.61133714,875.37,874.05,0.19853382]
[1757363098944,0.61133714,875.36,874.05,0.19853382]
[1757363099145,0.61133714,875.35,874.05,0.19853382]
[1757363099342,0.61133714,875.34,874.05,0.19853382]
[1757363099644,0.61133714,875.33,874.05,0.19853382]
[1757363099843,0.61133714,875.32,874.05,0.19853382]
[1757363100046,0.61133714,875.31,874.05,0.19853382]
[1757363100341,2.5619504,876.25,874.05,0.19853382]
[1757363100342,0.55020343,875.3,874.05,0.19853382]
[1757363100548,1.5320258,875.51,874.05,0.19853382]
[1757363100742,1.5320258,875.52,874.05,0.19853382]
[1757363102250,1.5320258,875.51,874.05,0.19853382]
[1757363104051,1.5320258,875.52,874.05,0.19853382]
[1757363104251,1.5320258,875.51,874.05,0.19853382]
[1757363104452,1.5320258,875.44,874.05,0.19853382]
[1757363104753,1.5320258,875.32,874.05,0.19853382]
[1757363104954,1.5320258,875.33,874.05,0.19853382]
[1757363105353,1.5320258,875.3,874.05,0.19853382]
[1757363105555,1.5320258,875.39,874.05,0.19853382]
[1757363105956,1.5320258,875.38,874.05,0.19853382]
[1757363109158,1.5320258,875.37,874.05,0.19853382]
[1757363109352,1.5320258,875.38,874.05,0.19853382]
[1757363109555,1.5320258,875.39,874.05,0.19853382]
[1757363110059,1.5320258,875.55,874.05,0.19853382]
[1757363110261,1.5320258,875.56,874.05,0.19853382]
[1757363110761,1.5320258,875.54,874.05,0.19853382]
[1757363111061,1.5320258,875.53,874.05,0.19853382]
[1757363111558,1.5320258,875.52,874.05,0.19853382]
[1757363112161,0.61085461,875.51,874.05,0.19853382]
[1757363112460,0.61085461,875.5,874.05,0.19853382]
[1757363112657,0.61085461,875.49,874.05,0.19853382]
[1757363112862,0.61085461,875.48,874.05,0.19853382]
[1757363113165,0.61085461,875.47,874.05,0.19853382]
[1757363113458,0.61085461,875.46,874.05,0.19853382]
[1757363113662,0.61085461,875.45,874.05,0.19853382]
[1757363113859,0.61085461,875.44,874.05,0.19853382]
[1757363114059,0.61085461,875.43,874.05,0.19853382]
[1757363114359,0.61085461,875.42,874.05,0.19853382]
[1757363114563,0.61085461,875.41,874.05,0.19853382]
[1757363114862,0.61085461,875.4,874.05,0.19853382]
[1757363115162,0.61085461,875.39,874.05,0.19853382]
[1757363115461,1.5320258,875.31,874.05,0.19853382]
[1757363115662,0.61085461,875.3,874.05,0.19853382]
[1757363115958,0.61085461,875.29,874.05,0.19853382]
[1757363116159,0.61085461,875.28,874.05,0.19853382]
[1757363116361,0.61085461,875.27,874.05,0.19853382]
[1757363116559,0.61085461,875.26,874.05,0.19853382]
[1757363116763,0.61085461,875.25,874.05,0.19853382]
[1757363116960,0.61085461,875.24,874.05,0.19853382]
[1757363117163,0.61085461,875.23,874.05,0.19853382]
[1757363117363,0.61085461,875.22,874.05,0.19853382]
[1757363117562,0.61085461,875.21,874.05,0.19853382]
[1757363117761,0.61085461,875.2,874.05,0.19853382]
[1757363117960,0.61085461,875.19,874.05,0.19853382]
[1757363118160,0.61085461,875.18,874.05,0.19853382]
[1757363118361,0.61085461,875.17,874.05,0.19853382]
[1757363118559,0.61085461,875.16,874.05,0.19853382]
[1757363118862,0.61085461,875.15,874.05,0.19853382]
[1757363119064,0.61085461,875.14,874.05,0.19853382]
[1757363119263,0.61085461,875.13,874.05,0.19853382]
[1757363119463,0.61085461,875.12,874.05,0.19853382]
[1757363119667,0.61085461,875.11,874.05,0.19853382]
[1757363119867,0.61085461,875.1,874.05,0.19853382]
[1757363120064,0.61085461,875.09,874.05,0.19853382]
[1757363120267,0.61085461,875.08,874.05,0.19853382]
[1757363120464,0.61085461,875.07,874.05,0.19853382]
[1757363120764,0.61085461,875.06,874.05,0.19853382]
[1757363120966,0.61085461,875.05,874.05,0.19853382]
[1757363121166,0.61085461,875.04,874.05,0.19853382]
[1757363121364,0.61085461,875.03,874.05,0.19853382]
[1757363121663,0.61085461,875.02,874.05,0.19853382]
[1757363121864,0.61085461,875.01,874.05,0.19853382]
[1757363122067,0.61085461,875.0,874.05,0.19853382]
[1757363122265,0.61085461,874.99,874.05,0.19853382]
[1757363122465,0.61085461,874.98,874.05,0.19853382]
[1757363122664,0.61085461,874.97,874.05,0.19853382]
[1757363122868,0.61085461,874.96,874.05,0.19853382]
[1757363123069,0.61085461,874.95,874.05,0.19853382]
[1757363123370,0.61085461,874.94,874.05,0.19853382]
[1757363123570,0.61074606,874.93,874.05,0.19853382]
[1757363123769,1.5320258,875.33,874.05,0.19853382]
[1757363123969,1.5320258,875.25,874.05,0.19853382]
[1757363124169,0.61206618,875.24,874.05,0.19853382]
[1757363124369,0.61206618,875.23,874.05,0.19853382]
[1757363124569,1.5320258,875.26,874.05,0.19853382]
[1757363124570,0.61206618,875.22,874.05,0.19853382]
[1757363124770,0.61206618,875.21,874.05,0.19853382]
[1757363124970,0.61206618,875.2,874.05,0.19853382]
[1757363125271,0.61206618,875.19,874.05,0.19853382]
[1757363125569,0.61206618,875.18,874.05,0.19853382]
[1757363125767,0.61206618,875.17,874.05,0.19853382]
[1757363125965,0.61206618,875.16,874.05,0.19853382]
[1757363126165,0.61206618,875.15,874.05,0.19853382]
[1757363126369,0.61206618,875.14,874.05,0.19853382]
[1757363126565,0.61206618,875.13,874.05,0.19853382]
[1757363126771,0.61206618,875.12,874.05,0.19853382]
[1757363126971,0.61206618,875.11,874.05,0.19853382]
[1757363127173,0.61206618,875.1,874.05,0.19853382]
[1757363127368,0.61206618,875.09,874.05,0.19853382]
[1757363127572,0.61206618,875.08,874.05,0.19853382]
[1757363127771,0.61206618,875.07,874.05,0.19853382]
[1757363128068,0.61206618,875.06,874.05,0.19853382]
[1757363128267,0.61206618,875.05,874.05,0.19853382]
[1757363128469,0.61206618,875.04,874.05,0.19853382]
[1757363128666,0.61206618,875.03,874.05,0.19853382]
[1757363128866,0.61206618,875.02,874.05,0.19853382]
[1757363129070,0.61206618,875.01,874.05,0.19853382]
[1757363129272,0.61206618,875.0,874.05,0.19853382]
[1757363129472,0.61206618,874.99,874.05,0.19853382]
[1757363129767,0.61206618,874.98,874.05,0.19853382]
[1757363129970,0.61206618,874.97,874.05,0.19853382]
[1757363130171,0.55085957,874.96,874.05,0.19853382]
[1757363130368,1.5320258,875.2,874.05,0.19853382]
[1757363131073,1.5320258,875.22,874.05,0.19853382]
[1757363131675,1.5320258,875.23,874.05,0.19853382]
[1757363131970,1.5320258,875.24,874.05,0.19853382]
[1757363134274,1.5320258,875.23,874.05,0.19853382]
[1757363135379,1.5320258,875.24,874.05,0.19853382]
[1757363136282,1.5320258,875.23,874.05,0.19853382]
[1757363136681,1.5320258,875.24,874.05,0.19853382]
[1757363137482,1.5320258,875.23,874.05,0.19853382]
[1757363137885,1.5320258,875.22,874.05,0.19853382]
[1757363138485,1.5320258,875.19,874.05,0.19853382]
[1757363138785,1.5320258,875.2,874.05,0.19853382]
[1757363140088,1.5320258,875.19,874.05,0.19853382]
[1757363140288,1.5320258,875.16,874.05,0.19853382]
[1757363140988,1.37882323,875.12,874.05,0.19853382]
[1757363141690,3.5478291,876.16,874.05,0.19853382]
[1757363141691,2.5619504,875.65,874.05,0.19853382]
[1757363142088,0.60920959,875.64,874.05,0.19853382]
[1757363142287,0.60920959,875.63,874.05,0.19853382]
[1757363142587,0.60920959,875.62,874.05,0.19853382]
[1757363142887,0.60920959,875.61,874.05,0.19853382]
[1757363143091,0.60920959,875.6,874.05,0.19853382]
[1757363143386,0.60920959,875.59,874.05,0.19853382]
[1757363143589,0.60920959,875.58,874.05,0.19853382]
[1757363143787,0.60920959,875.57,874.05,0.19853382]
[1757363143987,0.60920959,875.56,874.05,0.19853382]
[1757363144196,2.5619504,875.65,874.05,0.19853382]
[1757363144197,0.60920959,875.55,874.05,0.19853382]
[1757363144393,0.60920959,875.54,874.05,0.19853382]
[1757363144694,0.60920959,875.53,874.05,0.19853382]
[1757363144893,0.60920959,875.52,874.05,0.19853382]
[1757363145097,0.60920959,875.51,874.05,0.19853382]
[1757363145395,0.60920959,875.5,874.05,0.19853382]
[1757363145696,0.60920959,875.49,874.05,0.19853382]
[1757363145899,0.60920959,875.48,874.05,0.19853382]
[1757363146200,0.60920959,875.47,874.05,0.19853382]
[1757363146398,2.5619504,875.8,874.05,0.19853382]
[1757363146399,0.60920959,875.46,874.05,0.19853382]
[1757363146694,0.60920959,875.45,874.05,0.19853382]
[1757363146995,0.60920959,875.44,874.05,0.19853382]
[1757363147195,0.60920959,875.43,874.05,0.19853382]
[1757363147398,0.60920959,875.42,874.05,0.19853382]
[1757363147596,0.60920959,875.41,874.05,0.19853382]
[1757363147797,0.60920959,875.4,874.05,0.19853382]
[1757363148000,0.60920959,875.39,874.05,0.19853382]
[1757363148301,0.60920959,875.38,874.05,0.19853382]
[1757363148499,0.60920959,875.37,874.05,0.19853382]
[1757363148799,0.60920959,875.36,874.05,0.19853382]
[1757363149003,0.60920959,875.35,874.05,0.19853382]
[1757363149202,0.60920959,875.34,874.05,0.19853382]
[1757363149399,0.60920959,875.33,874.05,0.19853382]
[1757363149600,0.60920959,875.32,874.05,0.19853382]
[1757363149802,0.60920959,875.31,874.05,0.19853382]
[1757363150000,0.60920959,875.3,874.05,0.19853382]
[1757363150200,0.60920959,875.29,874.05,0.19853382]
[1757363150503,0.60920959,875.28,874.05,0.19853382]
[1757363150702,0.60920959,875.27,874.05,0.19853382]
[1757363150900,0.60920959,875.26,874.05,0.19853382]
[1757363151103,0.60920959,875.25,874.05,0.19853382]
[1757363151400,0.60920959,875.24,874.05,0.19853382]
[1757363151603,0.60920959,875.23,874.05,0.19853382]
[1757363151803,0.60920959,875.22,874.05,0.19853382]
[1757363151999,0.60920959,875.21,874.05,0.19853382]
[1757363152200,0.60920959,875.2,874.05,0.19853382]
[1757363152403,0.60920959,875.19,874.05,0.19853382]
[1757363152601,0.60920959,875.18,874.05,0.19853382]
[1757363152898,0.60920959,875.17,874.05,0.19853382]
[1757363153101,0.60920959,875.16,874.05,0.19853382]
[1757363153301,0.60920959,875.15,874.05,0.19853382]
[1757363153500,0.60920959,875.14,874.05,0.19853382]
[1757363153704,0.60920959,875.13,874.05,0.19853382]
[1757363153904,0.60920959,875.12,874.05,0.19853382]
[1757363154104,0.60920959,875.11,874.05,0.19853382]
[1757363154300,2.5619504,876.11,874.05,0.19853382]
[1757363154301,0.60920959,875.1,874.05,0.19853382]
[1757363154500,0.60920959,875.09,874.05,0.19853382]
[1757363154801,0.60920959,875.08,874.05,0.19853382]
[1757363155004,0.60920959,875.07,874.05,0.19853382]
[1757363155203,0.60920959,875.06,874.05,0.19853382]
[1757363155402,0.60920959,875.05,874.05,0.19853382]
[1757363155602,0.60920959,875.04,874.05,0.19853382]
[1757363155902,0.60920959,875.03,874.05,0.19853382]
[1757363156104,0.60920959,875.02,874.05,0.19853382]
[1757363156306,0.60920959,875.01,874.05,0.19853382]
[1757363156507,0.60920959,875.0,874.05,0.19853382]
[1757363156705,2.5619504,876.06,873.71,1.5236796]
[1757363156903,0.61033386,876.05,873.71,1.5236796]
[1757363157205,0.61033386,876.04,873.71,1.5236796]
[1757363157408,0.61033386,876.03,873.71,1.5236796]
[1757363157604,0.61033386,876.02,873.69,1.5236796]
[1757363157807,0.61033386,876.01,873.7,1.5236796]
[1757363158107,0.61033386,876.0,873.7,1.5236796]
[1757363158306,0.61033386,875.99,873.71,1.5236796]
[1757363158505,0.61033386,875.98,873.71,1.5236796]
[1757363158709,0.61033386,875.97,873.71,1.5236796]
[1757363159008,0.61033386,875.96,873.71,1.5236796]
[1757363159208,0.61033386,875.95,873.72,1.5236796]
[1757363159407,0.61033386,875.94,873.72,1.5236796]
[1757363159610,0.61033386,875.93,873.72,1.5236796]
[1757363159907,0.61033386,875.92,873.76,1.5236796]
[1757363160106,0.61033386,875.91,873.76,1.5236796]
[1757363160307,0.61033386,875.9,873.78,1.5236796]
[1757363160510,0.61033386,875.89,873.78,1.5236796]
[1757363160710,0.61033386,875.88,873.78,1.5236796]
[1757363160908,0.61033386,875.87,873.78,1.5236796]
[1757363161108,1.5330591,875.36,873.78,1.5236796]
[1757363161310,0.61033386,875.35,873.78,1.5236796]
[1757363161507,0.61033386,875.34,873.78,1.5236796]
[1757363161813,0.61033386,875.33,873.7,1.5236796]
[1757363162014,0.61033386,875.32,873.72,1.5236796]
[1757363162207,0.61033386,875.31,873.72,1.5236796]
[1757363162407,0.61033386,875.3,873.73,1.5236796]
[1757363162607,0.61033386,875.29,873.79,1.5236796]
[1757363162814,0.61033386,875.28,873.79,1.5236796]
[1757363163011,0.61033386,875.27,873.79,1.5236796]
[1757363163313,0.61033386,875.26,873.8,1.5236796]
[1757363163511,0.61033386,875.25,873.8,1.5236796]
[1757363163708,0.61033386,875.24,873.8,1.5236796]
[1757363163912,0.61033386,875.23,873.81,1.5236796]
[1757363164208,2.5619504,876.51,873.8,1.5236796]
[1757363164209,0.61033386,875.22,873.8,1.5236796]
[1757363164413,0.61033386,875.21,873.81,1.5236796]
[1757363164612,0.61033386,875.2,873.81,1.5236796]
[1757363164812,1.5330591,875.6,873.81,1.5236796]
[1757363164813,0.61033386,875.19,873.81,1.5236796]
[1757363165010,1.5330591,875.6,873.81,1.5236796]
[1757363165214,0.6108848,875.59,873.81,1.5236796]
[1757363165510,0.6108848,875.58,873.81,1.5236796]
[1757363165710,1.5330591,875.42,873.95,1.5236796]
[1757363165910,0.6108848,875.41,873.95,1.5236796]
[1757363166114,0.6108848,875.4,873.95,1.5236796]
[1757363166315,0.6108848,875.39,873.95,1.5236796]
[1757363166515,0.6108848,875.38,873.95,1.5236796]
[1757363166715,0.6108848,875.37,873.95,1.5236796]
[1757363166916,0.6108848,875.36,873.99,1.5236796]
[1757363167216,0.6108848,875.35,873.99,1.5236796]